bitfinex-derivatives/quotes_ETHF0:USTF0_20260131
["timestamp","ask_amount","ask_price","bid_price","bid_amount"]
[1769846110090,4.02559122,2679.4,2678.8,3.93137369]
[1769846110793,4.02559122,2679.4,2679.0,3.74442369]
[1769846111989,4.02559122,2679.4,2678.8,3.74442369]
[1769846113191,4.02559122,2679.4,2678.9,3.93136369]
[1769846116794,4.02559122,2679.4,2679.0,0.18694]
[1769846119696,6.89734476,2679.4,2679.0,0.18694]
[1769846121705,4.02559122,2679.4,2679.0,3.93136369]
[1769846122196,4.02559122,2679.4,2679.0,0.18694]
[1769846123400,4.02559122,2679.4,2679.0,3.93136369]
[1769846123694,3.17092004,2679.8,2679.3,3.93134369]
[1769846123899,7.94e-06,2679.8,2679.4,0.18691]
[1769846125600,7.94e-06,2679.8,2679.4,3.93133369]
[1769846128500,7.94e-06,2679.8,2679.4,0.18691]
[1769846132898,2.86738215,2680.0,2679.4,0.18691]
[1769846133309,6.74537265,2679.9,2679.4,0.18691]
[1769846133701,2.8637129,2679.9,2679.4,0.18691]
[1769846148412,2.8637129,2679.9,2679.4,3.7409715]
[1769846154824,0.00417895,2679.9,2679.4,3.7409715]
[1769846158028,2.71586958,2679.9,2679.2,3.5540615]
[1769846158326,2.71586958,2679.9,2679.3,0.18691]
[1769846159132,2.71586958,2679.9,2679.4,0.18691]
[1769846161234,2.71586958,2679.9,2679.4,3.7409715]
[1769846162330,2.71586958,2679.9,2679.4,0.18691]
[1769846162931,2.71586958,2679.9,2679.4,3.7409715]
[1769846166632,2.71586958,2679.9,2679.4,0.18691]
[1769846166836,2.73482313,2679.7,2678.5,3.66758738]
[1769846167127,3.89293292,2679.6,2678.5,3.66758738]
[1769846167332,2.73482313,2679.5,2678.5,3.66758738]
[1769846167933,6.69414127,2679.4,2678.5,3.66758738]
[1769846168438,2.78547006,2679.4,2678.9,0.18694]
[1769846168622,2.78547006,2679.4,2678.9,3.85452738]
[1769846174743,5.33817895,2679.9,2678.9,3.85452738]
[1769846175038,2.77406105,2679.7,2678.9,3.85452738]
[1769846175342,2.77406105,2679.5,2678.9,3.85452738]
[1769846175730,6.76419712,2679.4,2678.9,3.85452738]
[1769846176233,2.76522381,2679.4,2678.9,3.85452738]
[1769846176433,2.76522381,2679.4,2678.9,0.18694]
[1769846176937,2.76522381,2679.4,2678.9,3.85452738]
[1769846179239,2.76522381,2679.4,2678.6,3.66758738]
[1769846179838,2.76522381,2679.4,2678.0,2.191]
[1769846179839,2.56871308,2679.2,2678.0,3.66758738]
[1769846180038,2.56871308,2679.2,2678.4,0.18698]
[1769846180237,6.70887804,2679.1,2678.4,3.85456738]
[1769846180538,2.56871308,2679.1,2678.4,3.85456738]
[1769846180937,4.14683793,2679.0,2678.4,3.85456738]
[1769846181237,2.56871308,2678.9,2678.4,0.18698]
[1769846181633,6.75669142,2678.8,2678.4,0.18698]
[1769846182031,2.55165147,2678.8,2678.4,0.18698]
[1769846182642,2.55165147,2678.8,2678.2,3.66758738]
[1769846183136,2.55165147,2678.8,2678.4,0.18698]
[1769846183840,2.55165147,2678.8,2678.2,3.66758738]
[1769846184137,2.35765625,2678.6,2678.0,3.66758738]
[1769846184342,2.35765625,2678.6,2677.9,0.00469733]
[1769846184542,4.1002041,2678.5,2677.9,0.00469733]
[1769846184844,4.1002041,2678.5,2677.9,3.67228471]
[1769846185046,4.1002041,2678.5,2677.9,3.85930471]
[1769846191253,6.50010382,2678.5,2677.9,3.85930471]
[1769846191654,2.39989972,2678.5,2677.9,3.85930471]
[1769846191953,4.11379738,2678.4,2677.9,3.85930471]
[1769846194157,3.67996671,2678.4,2678.1,3.66758738]
[1769846194358,0.30352995,2679.1,2678.3,3.66758738]
[1769846194760,4.10939361,2678.9,2678.3,3.66758738]
[1769846194960,4.10939361,2679.0,2678.3,3.66758738]
[1769846195260,2.81921392,2679.1,2678.3,3.66758738]
[1769846195452,4.05187716,2679.0,2678.3,3.66758738]
[1769846196150,6.50723172,2679.0,2678.3,3.66758738]
[1769846196765,2.45535456,2678.9,2678.3,3.66758738]
[1769846197158,3.69809429,2678.8,2678.3,3.66758738]
[1769846198658,3.69809429,2678.8,2678.2,0.18699]
[1769846199255,2.4617372,2678.6,2678.2,0.18699]
[1769846199559,2.4617372,2678.6,2677.9,3.55046694]
[1769846200258,2.4617372,2678.6,2678.2,0.18699]
[1769846200450,1.24099431,2678.8,2678.2,0.18699]
[1769846200651,3.6960052,2678.8,2678.2,0.18699]
[1769846200961,6.41664906,2678.7,2678.2,3.96466522]
[1769846204463,3.96163817,2678.7,2678.2,3.96466522]
[1769846207263,2.45234208,2678.6,2678.2,0.18699]
[1769846207469,1.24099431,2678.5,2677.9,3.77767522]
[1769846207666,5.24240263,2678.5,2677.9,3.77767522]
[1769846208067,2.45221416,2678.4,2677.7,3.77767522]
[1769846208270,2.45221416,2678.1,2677.6,0.18704]
[1769846208470,2.45221416,2678.1,2677.6,3.96790537]
[1769846208675,1.24099431,2678.2,2677.6,3.96790537]
[1769846209174,3.94862368,2678.1,2677.6,3.96790537]
[1769846214181,6.35544144,2678.1,2677.6,3.96790537]
[1769846214383,3.94862368,2678.1,2677.6,3.96790537]
[1769846214584,6.35544144,2678.1,2677.3,2.191]
[1769846215483,6.35544144,2678.1,2677.6,0.18704]
[1769846215683,6.35544144,2678.1,2677.6,0.19183928]
[1769846216684,6.35544144,2678.1,2677.6,3.9695145]
[1769846216983,7.51256821,2678.1,2677.6,0.19183928]
[1769846217281,7.51256821,2678.1,2677.6,3.9695145]
[1769846219783,1.24099431,2678.0,2676.7,1.24099431]
[1769846219980,1.24099431,2678.0,2677.3,3.77767522]
[1769846220285,3.89879337,2677.9,2677.3,3.77767522]
[1769846220877,3.90313546,2677.9,2677.3,3.78215588]
[1769846221181,1.24099431,2678.2,2677.5,3.77767522]
[1769846221484,4.13054888,2678.0,2677.5,3.77767522]
[1769846221885,1.24099431,2678.2,2677.5,3.77767522]
[1769846222181,4.13054888,2678.1,2677.5,3.77767522]
[1769846222382,4.13054888,2678.1,2677.4,0.18705]
[1769846222383,3.56394453,2678.0,2677.0,3.77767522]
[1769846222587,4.80493884,2678.0,2677.0,3.77767522]
[1769846222786,4.19016713,2677.9,2677.0,3.77767522]
[1769846223587,4.19016713,2677.9,2677.0,3.78067055]
[1769846224187,4.19016713,2677.9,2677.4,3.96472522]
[1769846224389,7.73846241,2677.9,2677.4,3.96472522]
[1769846224582,3.54829528,2677.8,2677.2,3.77767522]
[1769846224787,4.78928959,2677.5,2677.0,0.00299533]
[1769846224986,4.78928959,2677.5,2677.0,3.78067055]
[1769846225186,4.78928959,2677.7,2677.0,3.78067055]
[1769846225688,3.94303104,2677.6,2677.0,3.78067055]
[1769846226386,7.49132632,2677.6,2677.0,3.78067055]
[1769846227282,7.79485627,2677.6,2677.0,3.78067055]
[1769846228080,3.58736024,2677.5,2676.9,0.18708]
[1769846228487,7.60843502,2677.4,2676.9,4.04061628]
[1769846228789,3.58736024,2677.4,2676.9,4.04061628]
[1769846229191,3.58736024,2677.4,2676.9,4.04440153]
[1769846229391,3.58736024,2677.4,2676.9,0.18951849]
[1769846229691,4.065417,2677.3,2676.9,0.18951849]
[1769846229885,7.64684524,2677.3,2676.9,0.18951849]
[1769846231186,4.065417,2677.3,2676.9,4.04305477]
[1769846234594,4.065417,2677.3,2676.9,0.18951849]
[1769846235795,4.065417,2677.3,2676.9,4.04305477]
[1769846238194,4.83131917,2677.5,2676.9,4.04305477]
[1769846238493,0.30352995,2677.6,2677.0,4.04061628]
[1769846239394,3.59032486,2677.7,2677.0,4.04061628]
[1769846239691,3.59032486,2677.4,2676.9,0.00378525]
[1769846239888,3.59032486,2677.4,2676.8,3.85353628]
[1769846240091,7.52489907,2677.3,2676.8,3.85353628]
[1769846240492,3.59032486,2677.3,2676.8,3.85353628]
[1769846240888,3.59032486,2677.3,2676.8,3.85801556]
[1769846241194,3.59032486,2677.3,2677.0,0.18707]
[1769846242195,3.59032486,2677.3,2676.8,3.85801556]
[1769846242393,3.59032486,2677.3,2677.0,0.18707]
[1769846242697,3.59032486,2677.3,2676.8,3.85801556]
[1769846243296,3.59032486,2677.3,2677.0,0.18707]
[1769846243494,3.59032486,2677.3,2676.8,3.85801556]
[1769846245199,3.59032486,2677.3,2677.0,0.18707]
[1769846246701,3.59032486,2677.4,2677.0,0.18707]
[1769846247098,7.66538722,2677.4,2677.0,0.18707]
[1769846248495,4.07506236,2677.4,2677.0,4.04060628]
[1769846248696,3.89385481,2677.8,2677.0,4.04060628]
[1769846248896,3.59032486,2678.0,2677.2,3.85353628]
[1769846249095,4.2114438,2677.7,2677.2,3.85353628]
[1769846249296,4.2114438,2677.8,2677.2,3.85353628]
[1769846249598,3.59032486,2678.0,2677.2,3.85353628]
[1769846249900,4.33389157,2677.9,2677.2,3.85353628]
[1769846251609,4.33389157,2677.9,2677.5,3.85353628]
[1769846252712,2.94389157,2677.9,2677.5,3.85353628]
[1769846255507,2.21490801,2678.7,2677.5,3.85353628]
[1769846255508,5.80523287,2679.0,2678.2,0.18699]
[1769846255707,3.59032486,2679.0,2678.3,4.04052628]
[1769846255916,4.06015025,2678.9,2678.3,4.04052628]
[1769846256212,3.59032486,2679.0,2678.3,4.04052628]
[1769846256607,3.59423112,2679.0,2678.3,4.04052628]
[1769846257712,3.59423112,2679.0,2678.4,0.18698]
[1769846257907,3.59423112,2679.0,2678.4,3.90153897]
[1769846261011,6.26e-06,2679.0,2678.7,0.18696]
[1769846261207,3.81688085,2679.4,2678.7,4.07775305]
[1769846261610,4.32696601,2679.3,2678.7,4.07775305]
[1769846262115,4.33025174,2679.3,2678.7,4.08123547]
[1769846264822,0.00328573,2679.3,2678.9,3.89079305]
[1769846265012,3.81688085,2679.4,2678.9,3.89079305]
[1769846265912,3.82074445,2679.4,2678.9,3.89079305]
[1769846267211,3.82074445,2679.4,2678.9,4.07774305]
[1769846270517,2.21490801,2681.0,2679.4,3.89079305]
[1769846270723,1.24066852,2681.1,2679.4,3.89079305]
[1769846271015,4.23546354,2680.4,2679.4,3.89079305]
[1769846271213,22.13313858,2685.3,2679.4,3.89079305]
[1769846271414,4.23546354,2680.3,2679.4,3.89079305]
[1769846271924,3.742,2681.5,2679.4,3.89079305]
[1769846272122,4.10621742,2680.2,2679.4,3.89079305]
[1769846272422,7.92309827,2680.3,2679.8,0.18688]
[1769846272721,3.81688085,2680.3,2679.8,0.18688]
[1769846273023,3.98054104,2680.2,2679.8,4.07767305]
[1769846273222,3.81688085,2680.3,2679.8,4.07767305]
[1769846274319,3.81688085,2680.3,2679.8,0.18688]
[1769846276520,3.81688085,2681.0,2679.8,4.07767305]
[1769846277025,3.81688085,2680.9,2679.8,4.07767305]
[1769846277521,4.18878834,2681.0,2679.8,4.07767305]
[1769846277522,3.81688085,2680.7,2679.8,4.07767305]
[1769846277922,1.24471208,2681.1,2679.8,4.07767305]
[1769846277923,3.81688085,2680.5,2679.8,4.07767305]
[1769846278518,4.19404828,2680.4,2679.8,4.07767305]
[1769846280715,3.81688085,2680.3,2679.4,3.89079305]
[1769846280927,3.81688085,2680.2,2678.7,0.00348242]
[1769846281125,3.81688085,2680.1,2678.9,3.89079305]
[1769846281627,3.81688085,2679.9,2678.9,3.89079305]
[1769846282020,4.27448484,2679.8,2678.9,3.89079305]
[1769846282230,4.27448484,2679.8,2679.2,0.18693]
[1769846285831,4.27448484,2679.8,2679.2,4.07772305]
[1769846288136,8.05862489,2679.8,2679.2,0.18693]
[1769846288338,3.78414005,2679.8,2678.8,3.84982046]
[1769846288538,7.85546429,2679.7,2678.8,3.84982046]
[1769846289058,3.78414005,2679.7,2678.8,3.84982046]
[1769846289236,4.06665971,2679.6,2679.2,0.18692]
[1769846289636,3.78414005,2679.5,2678.8,3.84982046]
[1769846289940,3.78414005,2679.5,2679.2,0.18692]
[1769846290137,3.78414005,2679.5,2679.2,0.1836281]
[1769846290339,3.78414005,2680.0,2679.2,0.1836281]
[1769846290749,3.78414005,2679.8,2679.2,0.1836281]
[1769846291144,3.78414005,2679.6,2679.2,0.1836281]
[1769846291546,4.15804924,2679.5,2679.2,0.1836281]
[1769846292350,7.94218929,2679.5,2679.2,0.1836281]
[1769846292951,3.76980924,2679.5,2679.2,4.03344856]
[1769846293158,2.80006924,2679.5,2679.3,4.03674046]
[1769846293348,1.98206924,2679.5,2679.3,4.03674046]
[1769846293654,3.78414005,2679.9,2679.3,4.03674046]
[1769846293853,3.78414005,2680.1,2679.3,4.03674046]
[1769846294150,4.07736076,2679.9,2679.3,4.03674046]
[1769846294347,3.78414005,2680.0,2679.3,4.03674046]
[1769846294547,7.86150081,2680.0,2679.3,4.03674046]
[1769846296157,3.78414005,2679.9,2679.3,4.03674046]
[1769846296459,4.20836573,2679.8,2679.3,4.03674046]
[1769846297756,7.99250578,2679.8,2679.3,4.03674046]
[1769846311363,4.20836573,2679.8,2679.3,4.03674046]
[1769846311563,7.99250578,2679.8,2679.3,4.03674046]
[1769846311760,7.99250578,2679.8,2679.1,3.84982046]
[1769846312262,7.99250578,2679.8,2679.3,0.18691]
[1769846312466,3.78414005,2679.7,2679.3,0.18691]
[1769846313170,3.78414005,2680.1,2679.3,4.03673046]
[1769846313459,8.09320243,2680.1,2679.3,4.03673046]
[1769846313658,3.78414005,2680.0,2679.3,4.03673046]
[1769846313857,3.78414005,2680.0,2679.3,0.18691]
[1769846314157,3.78414005,2679.8,2679.3,0.18691]
[1769846319766,3.76761799,2679.6,2678.8,3.55785283]
[1769846320158,3.79954883,2679.5,2679.3,0.18691]
[1769846320359,3.04278883,2679.5,2679.3,0.18691]
[1769846320665,1.91337883,2679.5,2679.3,0.18691]
[1769846320865,1.53955883,2679.5,2679.3,0.18691]
[1769846321269,1.16304883,2679.5,2679.3,0.18691]
[1769846321461,0.77438883,2679.5,2679.3,0.18691]
[1769846321662,8.83e-06,2679.5,2679.3,0.18691]
[1769846326772,3.76761799,2679.8,2679.3,0.18691]
[1769846327072,4.16730842,2679.7,2679.3,0.18691]
[1769846328776,4.16730842,2679.7,2679.3,3.74476283]
[1769846332173,5.00790741,2680.1,2679.3,3.74476283]
[1769846332472,4.02541663,2679.8,2679.3,3.74476283]
[1769846332871,3.76761799,2680.0,2679.3,3.74476283]
[1769846333273,7.96995225,2680.0,2679.4,3.74476283]
[1769846334272,4.20233426,2680.0,2679.4,3.74476283]
[1769846334667,7.92982402,2680.1,2679.4,3.74476283]
[1769846334872,3.76761799,2680.1,2679.4,3.74476283]
[1769846335177,3.96597979,2680.0,2679.4,3.74476283]
[1769846337376,7.73359778,2680.0,2679.4,3.74476283]
[1769846338576,5.00790741,2679.8,2679.2,3.55785283]
[1769846338976,3.76761799,2679.6,2679.0,3.55785283]
[1769846340979,5.00790741,2679.8,2679.0,3.55785283]
[1769846341179,3.76761799,2679.7,2679.0,3.55785283]
[1769846341479,7.8972542,2679.7,2679.0,3.55785283]
[1769846343281,7.8972542,2679.7,2679.1,3.55785283]
[1769846344173,7.8972542,2679.7,2679.4,0.10529]
[1769846344373,7.8972542,2679.7,2679.1,3.55785283]
[1769846345181,7.8972542,2679.7,2679.4,0.18691]
[1769846345382,7.8972542,2679.7,2679.1,3.55785283]
[1769846346280,7.8972542,2679.7,2679.4,0.18691]
[1769846346482,3.76761799,2679.4,2678.9,0.18694]
[1769846346787,1.24028942,2679.5,2678.7,0.00348242]
[1769846346788,7.44408824,2679.3,2678.7,0.00348242]
[1769846346978,3.5611364,2679.2,2678.9,0.18694]
[1769846347178,3.56490607,2679.2,2678.9,0.18694]
[1769846348883,0.00376967,2679.2,2678.9,0.18694]
[1769846349683,0.00376967,2679.2,2678.9,3.86644705]
[1769846349979,3.5611364,2679.7,2679.0,3.67950705]
[1769846350184,3.5611364,2679.7,2679.2,3.86642705]
[1769846350375,4.00186098,2679.6,2679.2,3.86642705]
[1769846350883,4.00501889,2679.6,2679.2,3.86642705]
[1769846353883,4.00501889,2679.6,2679.2,0.18692]
[1769846354083,3.5611364,2679.4,2678.8,3.67950705]
[1769846354388,1.24028942,2679.5,2678.7,0.00348242]
[1769846354389,7.46162378,2679.3,2678.7,0.00348242]
[1769846354684,3.5611364,2679.3,2679.2,0.18692]
[1769846354880,3.5611364,2679.3,2678.7,3.68298947]
[1769846355090,4.24136459,2679.2,2678.7,3.86994947]
[1769846355288,7.80250099,2679.3,2678.7,3.86994947]
[1769846355488,3.5611364,2679.3,2678.7,3.86994947]
[1769846355786,4.24136459,2679.2,2678.7,3.86994947]
[1769846356180,4.24136459,2679.2,2678.8,3.86645705]
[1769846358886,7.80250099,2679.2,2678.8,0.18695]
[1769846359389,4.24136459,2679.2,2678.8,3.86645705]
[1769846360883,7.80250099,2679.2,2678.8,0.18695]
[1769846361387,4.24136459,2679.2,2678.7,3.67950705]
[1769846361586,7.80250099,2679.2,2678.7,3.67950705]
[1769846361982,3.5611364,2679.1,2678.8,0.18695]
[1769846362478,3.5611364,2679.1,2678.8,0.00380399]
[1769846362680,3.5611364,2679.1,2678.5,3.67950705]
[1769846362884,1.24028942,2679.3,2678.5,3.67950705]
[1769846363080,4.80142582,2679.3,2678.5,3.67950705]
[1769846363281,7.57147905,2679.2,2678.8,0.18695]
[1769846363687,3.5611364,2679.1,2678.8,0.19047167]
[1769846364185,1.24028942,2679.3,2678.8,0.19047167]
[1769846364384,4.80142582,2679.3,2678.8,3.86997872]
[1769846364584,4.01802449,2679.2,2678.8,3.86997872]
[1769846370298,7.57916089,2679.2,2678.8,0.19047167]
[1769846370800,4.01802449,2679.2,2678.8,3.86997872]
[1769846378400,3.63826449,2679.2,2678.8,3.86997872]
[1769846378600,2.24826449,2679.2,2678.8,3.86997872]
[1769846379198,2.24826449,2679.2,2678.8,0.19047167]
[1769846379399,2.24826449,2679.2,2678.8,4.05154653]
[1769846384206,1.86364449,2679.2,2678.9,0.18695]
[1769846384410,1.86364449,2679.2,2678.9,4.04802486]
[1769846385209,0.00315791,2679.6,2678.9,4.04802486]
[1769846385712,4.07600385,2679.5,2678.9,4.04802486]
[1769846386505,4.07600385,2679.5,2679.1,3.86107486]
[1769846389404,0.00315791,2679.6,2679.2,4.04799486]
[1769846391506,0.30352995,2679.8,2679.2,4.04799486]
[1769846391708,3.80548403,2679.9,2679.2,4.04799486]
[1769846391910,4.15583382,2679.7,2679.2,4.04799486]
[1769846392311,3.80548403,2679.9,2679.2,4.04799486]
[1769846392713,4.09443857,2679.6,2679.2,4.04799486]
[1769846392916,4.09443857,2679.8,2679.2,4.04799486]
[1769846393211,3.80838771,2679.9,2679.2,4.04799486]
[1769846393412,4.0085015,2679.8,2679.2,4.04799486]
[1769846394206,4.0085015,2679.8,2679.4,3.86107486]
[1769846394606,0.00290368,2679.9,2679.4,3.86107486]
[1769846394910,0.00290368,2679.9,2679.6,4.04796486]
[1769846395109,3.80548403,2680.3,2679.6,4.04796486]
[1769846395310,9.37648403,2680.5,2679.7,4.04796486]
[1769846395613,3.93400878,2680.2,2679.7,4.04796486]
[1769846395813,3.93400878,2680.3,2679.9,3.86107486]
[1769846396113,0.00354444,2680.3,2679.9,3.86107486]
[1769846396414,4.22572303,2680.2,2679.9,3.86107486]
[1769846397910,2.52874577,2680.2,2679.9,3.86107486]
[1769846398615,0.00354444,2680.3,2679.9,3.86107486]
[1769846403614,0.30352995,2680.9,2679.9,3.86107486]
[1769846403820,4.10901398,2680.9,2679.9,4.04795486]
[1769846404019,3.98549225,2680.8,2679.9,4.04795486]
[1769846404213,3.98549225,2680.8,2680.1,3.86107486]
[1769846404614,3.9900766,2680.8,2680.1,3.86107486]
[1769846405212,3.9900766,2680.8,2680.1,4.04793486]
[1769846406217,3.9900766,2680.8,2680.3,3.86107486]
[1769846406918,3.9900766,2680.8,2680.2,0.18685]
[1769846407124,7.57304047,2680.8,2680.2,0.18685]
[1769846407319,7.57304047,2680.8,2680.2,3.96589703]
[1769846407619,3.9900766,2680.8,2680.2,3.96589703]
[1769846412021,3.58296387,2680.7,2679.7,3.77904703]
[1769846412425,3.58296387,2680.5,2679.7,3.77904703]
[1769846412724,4.11527894,2680.4,2679.7,3.77904703]
[1769846413326,4.11527894,2680.4,2679.9,3.77904703]
[1769846417432,0.00458435,2680.8,2679.9,3.77904703]
[1769846417735,4.05529429,2680.6,2679.9,3.77904703]
[1769846418033,0.00458435,2680.8,2679.9,3.77904703]
[1769846418331,3.91022638,2680.7,2679.9,3.96591703]
[1769846418726,3.91022638,2680.7,2680.1,3.77904703]
[1769846419124,3.91022638,2680.7,2680.1,3.96590703]
[1769846419530,0.00458435,2680.8,2680.3,3.77904703]
[1769846421335,3.58296387,2681.4,2680.3,3.77904703]
[1769846421738,4.25289015,2681.0,2680.5,3.77904703]
[1769846422241,4.00315732,2681.2,2680.5,3.77904703]
[1769846422431,4.00720083,2681.2,2680.5,3.77904703]
[1769846422632,0.00404351,2681.2,2680.5,3.77904703]
[1769846422928,4.00315732,2681.1,2680.5,3.96587703]
[1769846424739,4.00315732,2681.1,2680.7,3.77904703]
[1769846424940,4.00315732,2681.1,2680.7,3.78353483]
[1769846427942,0.00404351,2681.2,2680.7,3.78353483]
[1769846429637,3.58700738,2681.2,2680.7,0.0044878]
[1769846430042,7.73850625,2681.1,2680.6,0.18683]
[1769846430643,3.58296387,2681.0,2679.6,3.77904703]
[1769846431145,3.58296387,2680.8,2679.6,0.00363569]
[1769846431345,4.15080746,2680.9,2679.9,3.96592703]
[1769846431541,7.69059778,2680.7,2679.9,3.96592703]
[1769846431842,3.58296387,2680.7,2679.9,3.96592703]
[1769846432036,4.10763391,2680.6,2679.9,3.96592703]
[1769846433741,4.10763391,2680.6,2680.1,3.77904703]
[1769846433948,3.58296387,2681.1,2680.3,3.77904703]
[1769846434142,3.58296387,2681.1,2680.3,3.96589703]
[1769846434351,4.0402956,2681.0,2680.3,3.96589703]
[1769846435847,7.62325947,2681.0,2680.3,3.96589703]
[1769846437149,7.62325947,2681.0,2680.4,3.97168609]
[1769846440648,4.0402956,2681.0,2680.4,3.97168609]
[1769846442854,4.0402956,2681.0,2680.6,3.80935106]
[1769846446555,4.0402956,2681.0,2680.6,3.99618106]
[1769846447658,0.00404351,2681.2,2680.6,3.99618106]
[1769846447956,4.29449113,2681.1,2680.6,3.99618106]
[1769846449357,3.84452237,2681.0,2680.6,0.18683]
[1769846449560,3.84452237,2681.0,2680.2,3.80935106]
[1769846450153,3.84452237,2681.0,2680.6,0.18683]
[1769846452463,3.84452237,2680.8,2680.0,3.80935106]
[1769846452856,3.69220278,2680.7,2680.0,3.80935106]
[1769846453057,3.84856588,2681.2,2680.0,3.80935106]
[1769846453259,3.84856588,2681.2,2680.6,0.18683]
[1769846453459,4.12920077,2681.0,2680.6,3.99618106]
[1769846453660,4.12920077,2681.1,2680.6,3.99618106]
[1769846453960,3.84856588,2681.2,2680.6,3.99618106]
[1769846454162,7.97372314,2681.1,2680.6,3.99618106]
[1769846457265,4.12920077,2681.1,2680.6,3.99618106]
[1769846458866,4.12920077,2681.1,2680.7,0.18682]
[1769846459061,4.08337148,2681.1,2680.7,3.99617106]
[1769846461972,7.92789385,2681.1,2680.7,3.99617106]
[1769846462365,4.08337148,2681.1,2680.7,3.99617106]
[1769846462668,7.92789385,2681.1,2680.7,0.18682]
[1769846463871,4.08337148,2681.1,2680.7,3.99617106]
[1769846464368,3.70585148,2681.1,2680.7,3.99617106]
[1769846464865,7.55037385,2681.1,2680.7,3.99617106]
[1769846465067,7.55037385,2681.1,2680.7,0.18682]
[1769846465372,7.55037385,2681.1,2680.7,3.99617106]
[1769846465670,3.70585148,2681.1,2680.7,3.99617106]
[1769846465871,0.00404351,2681.2,2680.7,3.99617106]
[1769846468380,0.30352995,2681.7,2681.0,3.82769516]
[1769846468588,4.03169782,2681.9,2681.0,3.82769516]
[1769846468883,3.72816787,2681.5,2680.8,0.18681]
[1769846469283,4.01420464,2681.4,2680.4,3.82769516]
[1769846469482,3.72816787,2681.3,2680.4,3.82769516]
[1769846469983,7.74237251,2681.2,2680.4,3.82769516]
[1769846470279,3.72816787,2681.1,2680.8,0.18681]
[1769846470483,7.81271126,2681.3,2680.5,3.82769516]
[1769846470684,3.72816787,2681.3,2680.5,3.82769516]
[1769846470888,4.08454339,2681.2,2680.5,3.82769516]
[1769846471185,4.08454339,2681.2,2680.8,0.18681]
[1769846471486,7.81271126,2681.2,2680.8,0.18681]
[1769846471688,4.08454339,2681.2,2680.8,4.01450516]
[1769846472083,0.00268722,2681.4,2680.8,4.01450516]
[1769846472288,3.72816787,2681.8,2681.0,4.01449516]
[1769846472688,3.93027658,2681.7,2681.0,4.01449516]
[1769846473489,3.93297147,2681.7,2681.2,3.82769516]
[1769846475191,3.93297147,2681.7,2681.2,4.01448516]
[1769846475593,0.00269489,2681.7,2681.2,4.01448516]
[1769846475895,3.72816787,2682.0,2681.4,3.82769516]
[1769846476193,3.90017339,2681.9,2681.5,4.01445516]
[1769846476994,3.90445624,2681.9,2681.5,4.01846332]
[1769846477193,3.72816787,2682.6,2681.7,4.01444516]
[1769846477490,3.72816787,2682.5,2681.7,4.01444516]
[1769846478087,3.73267581,2682.5,2681.7,4.01444516]
[1769846478387,3.73267581,2682.5,2681.8,4.01443516]
[1769846482492,3.72816787,2682.3,2681.5,3.83170332]
[1769846482798,3.72816787,2682.1,2681.5,0.00400816]
[1769846484393,3.72816787,2682.1,2681.2,3.82769516]
[1769846484795,3.72816787,2682.1,2681.8,0.10537327]
[1769846484995,3.72816787,2681.9,2681.2,0.18678]
[1769846485291,4.10744496,2681.8,2681.2,0.19134857]
[1769846485495,1.89974273,2681.8,2681.3,3.82769516]
[1769846485692,3.72816787,2682.2,2681.3,3.82769516]
[1769846486099,3.72816787,2682.2,2681.6,3.82769516]
[1769846488104,3.72816787,2682.4,2681.6,3.82769516]
[1769846488395,7.88584883,2682.4,2681.6,3.82769516]
[1769846489299,7.88584883,2682.4,2681.7,4.01444516]
[1769846491302,3.72816787,2682.3,2681.7,4.01444516]
[1769846491596,3.72816787,2682.1,2681.3,3.82769516]
[1769846492895,3.72816787,2682.4,2681.3,3.82769516]
[1769846493298,7.8063639,2682.4,2681.7,0.18675]
[1769846493502,3.72816787,2682.3,2681.7,0.18675]
[1769846493803,8.05474863,2682.2,2681.7,4.01444516]
[1769846494103,3.72816787,2682.2,2681.7,4.01444516]
[1769846495704,3.72816787,2682.2,2681.7,0.18675]
[1769846495905,3.72816787,2682.2,2681.7,4.01444516]
[1769846496108,3.73267581,2682.5,2681.7,4.01444516]
[1769846496299,3.73267581,2682.5,2681.8,4.01443516]
[1769846496501,4.11079806,2682.4,2681.8,4.01443516]
[1769846499309,3.62087218,2682.3,2681.8,0.18674]
[1769846499604,3.62087218,2682.3,2681.8,3.81773621]
[1769846501808,3.62087218,2682.3,2681.8,0.18674]
[1769846507410,3.62087218,2682.1,2681.3,3.81777621]
[1769846507713,3.62087218,2682.1,2681.3,0.18678]
[1769846507918,3.62087218,2681.9,2681.3,0.18678]
[1769846509318,0.00450794,2682.5,2681.5,3.63099621]
[1769846509617,4.08854579,2682.4,2681.7,0.18675]
[1769846510115,4.08854579,2682.4,2681.7,3.81774621]
[1769846513511,7.70941797,2682.4,2681.7,3.81774621]
[1769846520931,0.00450794,2682.5,2681.8,3.63099621]
[1769846521531,0.00450794,2682.5,2681.9,3.81773621]
[1769846522331,3.24213218,2682.9,2682.5,0.18669]
[1769846522533,0.12282282,2683.1,2682.5,3.81768621]
[1769846522729,4.21967115,2682.9,2682.5,3.81768621]
[1769846522930,0.12282282,2683.1,2682.5,3.81768621]
[1769846523139,2.2131767,2683.6,2682.7,0.18668]
[1769846523328,0.0043964,2683.6,2682.7,3.81767621]
[1769846523636,4.11307039,2683.4,2682.7,3.81767621]
[1769846523838,4.11307039,2683.5,2682.7,3.81767621]
[1769846524027,0.0043964,2683.6,2682.7,3.81767621]
[1769846524226,4.11307039,2683.5,2682.7,3.81767621]
[1769846524422,7.73394257,2683.5,2682.7,3.81767621]
[1769846524634,3.71231039,2683.5,2682.9,3.63099621]
[1769846524837,3.62087218,2684.0,2683.1,3.63099621]
[1769846525228,7.68524904,2683.9,2683.1,3.63099621]
[1769846525628,3.62087218,2683.9,2683.1,3.63099621]
[1769846525823,7.68972707,2683.8,2683.1,3.63427583]
[1769846526238,7.68972707,2683.8,2683.2,0.18665]
[1769846527132,3.86781645,2683.7,2683.2,0.18665]
[1769846527328,3.86781645,2683.7,2682.1,3.63340845]
[1769846527533,0.00316397,2683.9,2682.1,3.63340845]
[1769846527534,3.86781645,2683.5,2682.1,3.63340845]
[1769846527828,3.96824944,2683.4,2682.1,3.63340845]
[1769846528033,3.86781645,2683.3,2682.1,3.63340845]
[1769846528236,3.86781645,2683.3,2682.6,0.18669]
[1769846528532,3.86781645,2683.3,2682.6,0.19035651]
[1769846530037,3.86781645,2683.3,2682.7,3.82008845]
[1769846530228,3.86781645,2683.8,2682.7,3.82008845]
[1769846530640,3.86781645,2683.7,2682.7,3.82008845]
[1769846530931,3.86781645,2683.5,2682.7,3.82008845]
[1769846531232,4.19711755,2683.4,2682.7,3.82008845]
[1769846531435,3.86781645,2683.3,2682.7,0.18668]
[1769846531736,4.19711755,2683.7,2682.6,0.00366651]
[1769846531737,3.86781645,2683.1,2682.6,0.00366651]
[1769846531939,3.86781645,2683.1,2682.1,3.63340845]
[1769846532230,3.86781645,2682.9,2682.1,3.63340845]
[1769846532436,3.86781645,2682.9,2682.7,0.18668]
[1769846532626,3.86781645,2682.9,2682.1,3.63340845]
[1769846532831,3.86781645,2682.9,2682.7,0.18668]
[1769846533031,3.86781645,2682.9,2682.1,3.6376843]